Workbook

Sheet Lens
L2: Cameras- Base | M2: Max H-Res | N2: Min H-Res | O2: Distance Units | P2: Effective Pix size | Q2: =IF(C6=L5,(O8*C8),C8) -> 5 | R2: m
L3: TS3/IL3-S HiSpec1/2 | M3: =IF(C6=L3,1280,IF(C6=L4,800,IF(C6=L6,1696,IF(AND(C6=L5,O8=1),2560,IF(AND(C6=L5,O8=2),1280,IF(AND(C6=L5,O8=4),640)))))) -> 2560 | N3: 48 | O3: Feet | P3: Image Size:
L4: TS3/IL3-L | O4: Inches | P4: Horizontal | Q4: =(Q2*C9*0.001) -> 9.6 | R4: mm
L5: TS5/IL5 | O5: Meters | P5: Vertical | Q5: =(Q2*C11*0.001) -> 5.4 | R5: mm
B6: Camera Model | C6: TS5/IL5 | L6: HiSpec 4/5 | O6: Centimeters | P6: Diagonal | Q6: =SQRT((Q4*Q4)+(Q5*Q5)) -> 11.01453585
B7: Binning / Sub-Sampling | C7: 1x1 | P7: Distance | Q7: =IF(D13=O3,(C13*304.8),IF(D13=O4,(C13*304.8/12),IF(D13=O5,(C13*1000),IF(D13=O6,(C13*10))))) -> 10000 | R7: mm
B8: Pixel Size | C8: =IF(C6=L5,5,IF(C6=L6,8,14)) -> 5 | D8: m | L8: Aspect Ratios | N8: Bin/Sub: | O8: =IF(C7="1x1",1,IF(C7="2x2",2,IF(C7="4x4",4,1))) -> 1 | P8: Object Size:
B9: Horizontal Resolution | C9: 1920 | D9: =IF(C9>M3,"Reduce Value"," ") ->  | L9: 5:4 | N9: =IF(AND(C6=L5,C9<1280),"1x1","1x1") -> 1x1 | P9: Horizontal | Q9: =((Q7-C12)*Q4)/C12 -> 3830.4 | R9: mm
B10: Aspect Ratio | C10: 16:9 | L10: 4:3 | N10: =IF(AND(C6=L5,C9<1281),"2x2","1x1") -> 1x1 | P10: Vertical | Q10: =((Q7-C12)*Q5)/C12 -> 2154.6 | R10: mm
B11: Vertical Resolution | C11: =L12-M12 -> 1080 | L11: 16:9 | N11: =IF(AND(C6=L5,(C9<641)),"4x4","1x1") -> 1x1 | P11: Horizontal Angle | Q11: =DEGREES(2*(ATAN((Q9/2)/Q$7))) -> 21.6839976
B12: Focal Length | C12: 25 | D12: mm | K12: EVEN: | L12: =IF($C$10=$L$9,($C$9*(4/5)),IF($C$10=$L$10,($C$9*(3/4)),IF($C$10=$L$11,($C$9*(9/16))))) -> 1080 | M12: =MOD(L12,2) -> 0 | P12: Vertical Angle | Q12: =DEGREES(2*(ATAN((Q10/2)/Q$7))) -> 12.297521
B13: Distance | C13: 10 | D13: Meters | E13: Units | L13: 35mm SLR Diagonal
B14: Horizontal Field of View | C14: =IF(D14=O3,(Q9/304.8),IF(D14=O4,(Q9/25.4),IF(D14=O5,(Q9/1000),IF(D14=O6,(Q9/10))))) -> 3.8304 | D14: =D13 -> Meters | L14: 42.04628
B15: Vertical Field of View | C15: =IF(D14=O3,(Q10/304.8),IF(D14=O4,(Q10/25.4),IF(D14=O5,(Q10/1000),IF(D14=O6,(Q10/10))))) -> 2.1546 | D15: =D13 -> Meters
B16: Horizontal View Angle | C16: =Q11 -> 21.6839976 | D16: Degrees
B17: Vertical View Angle | C17: =Q12 -> 12.297521 | D17: Degrees
B18: Focal Length Multiplier | C18: =L14/Q6 -> 3.817344695
B19: Magnification | C19: 1: | D19: =Q9/Q4 -> 399
B20: Lens Format Compatibility
B21: PL-mount | C21: YES
B22: F-mount | C22: YES
B23: 4/3" C-Mount (22.9mm) | C23: YES
B24: 1" C-Mount (16mm) | C24: =IF(Q6<16.1,"YES",IF(Q6<17.5,"MAY VIGNETTE","WILL VIGNETTE")) -> YES
B25: 2/3" C-Mount (11mm) | C25: =IF(Q6<11.5,"YES",IF(Q6<13,"MAY VIGNETTE","WILL VIGNETTE")) -> YES
B26: 1/2" C-Mount (8mm) | C26: =IF(Q6<8.5,"YES",IF(Q6<9.7,"MAY VIGNETTE","WILL VIGNETTE")) -> WILL VIGNETTE
B27: 1/3" C-Mount (6mm) | C27: =IF(Q6<6.5,"YES",IF(Q6<7.3,"MAY VIGNETTE","WILL VIGNETTE")) -> WILL VIGNETTE

Sheet DOF
B1: Depth of Field Calculator
B4: FASTEC Camera:
B6: TS5/IL5 | K6: Apertures | N6: Focal Lengths | U6: Any Camera
B7: F/Stop | C7: 2 | D7: 5.656854 | J7: Pixel Sizes of Cameras | K7: 0.7 | L7: f/1 | N7: 17 | P7: Pixel size | R7: Area | U7: F/Stop | V7: =(V8/C8)*C7 -> 8.8 | W7: 5.656854
B8: Focal Length (mm) | C8: 25 | E8: mm | J8: TS5/IL5 | K8: 0.8 | L8: f/1.2 | N8: 20 | P8: 5 | Q8: µ | R8: =POWER(P8,2) -> 25 | S8: µ2 | U8: Focal Length (mm) | V8: =(AA11/H11)*C8 -> 110 | X8: mm
B9: Distance to subject (feet) | C9: 4.923 | D9: =SUM(C9*1000)*0.3048 -> 1500.5304 | E9: ft | F9: =C9*0.3048 -> 1.5005304 | J9: TS/IL3/4 HS1/2 | K9: 1 | L9: f/1.4 | N9: 24 | P9: 14 | Q9: µ | R9: =POWER(P9,2) -> 196 | S9: µ2 | U9: Distance to subject (feet) | V9: =C9 -> 4.923 | W9: =SUM(V9*1000)*0.3048 -> 1500.5304 | X9: ft
B10: Circle of Confusion | C10: =H12 -> 0.01 | G10: Circle of Confusion | J10: TS5/IL5_2xbin_subsample | K10: 1.2 | L10: f/1.6 | N10: 28 | P10: 10 | Q10: µ | R10: 100 | S10: µ2 | U10: Circle of Confusion | V10: =AA12 -> 0.044 | Z10: Circle of Confusion
G11: Pixel size | H11: =IF((B6=J8),P8,IF((B6=J$9),P$9,IF((B6=J$10),P$10,IF((B6=J$11),P$11,IF((B6=J$16),P$16,IF((B6=J$12),P$12,IF((B6=J$13),P$13,IF((B6=J$14),P$14,IF((B6=J$15),P$15,ERROR))))))))) -> 5 | I11: µ | J11: TS5/IL5_4xbin_subsample | K11: 1.4 | L11: f/1.7 | N11: 35 | P11: 20 | Q11: µ | R11: 400 | S11: µ2 | Z11: Pixel size | AA11: 22 | AB11: µ
B12: Output Values | G12: CoC | H12: =H11*0.002 -> 0.01 | J12: HS 4/5 | K12: 1.7 | L12: f/2 | N12: 70 | P12: 8 | Q12: µ | R12: 64 | S12: µ2 | U12: Output Values | Z12: CoC | AA12: =AA11*0.002 -> 0.044
B13: Dof Near Point | C13: =SUM(D13/1000)*3.2808399 -> 4.70103153 | D13: =(((D16*D9)/(D16+(D9-C8)))) -> 1432.874408 | E13: ft | F13: =C13*0.3048 -> 1.43287441 | J13: Miro110 / Phot AX200/100 | K13: 2 | L13: f/5.6 | N13: 210 | P13: 20 | Q13: µ | R13: 400 | S13: µ2 | U13: Dof Near Point | V13: =SUM(W13/1000)*3.2808399 -> 4.7132736 | W13: =(((W16*W9)/(W16+(W9-V8)))) -> 1436.605791 | X13: ft
B14: Dof Far Point | C14: =SUM(D14/1000)*3.2808399 -> 5.166968624 | D14: =((D16*D9)/(D16-(D9-C8))) -> 1574.892034 | E14: ft | F14: =C14*0.3048 -> 1.574892037 | J14: Miro 320 / Phot UX50 | K14: 2.4 | L14: f/7.1 | N14: 300 | P14: 10 | Q14: µ | R14: 100 | S14: µ2 | U14: Dof Far Point | V14: =SUM(W14/1000)*3.2808399 -> 5.15225998 | W14: =((W16*W9)/(W16-(W9-V8))) -> 1570.408839 | X14: ft
B15: Total Depth of Field | C15: =SUM(C14-C13) -> 0.4659370949 | E15: ft | F15: 0.1420176265 | J15: Photron SA3 | K15: 2.8 | L15: f/8 | N15: 350 | P15: 17 | Q15: µ | R15: 289 | S15: µ2 | U15: Total Depth of Field | V15: =SUM(V14-V13) -> 0.4389863794 | X15: ft
B16: Hyperfocal Distance | C16: =(((C8*C8) / (C7*C10))+C8) /1000 * 3.2808399 -> 102.6082679 | D16: =SUM((C8*C8)/(C7*C10)) -> 31250 | E16: ft | J16: Photron SA-Z 200 | K16: 3.3 | L16: f/9 | N16: 400 | P16: 20 | Q16: µ | R16: 400 | S16: µ2 | U16: Hyperfocal Distance | V16: =(((V8*V8) / (V7*V10))+V8) /1000 * 3.2808399 -> 102.8871393 | W16: =SUM((V8*V8)/(V7*V10)) -> 31250 | X16: ft
J17: Sony DSC-Rx100-III | K17: 4 | L17: f/10 | N17: 600 | P17: 2.4 | Q17: µ | R17: 5.76 | S17: µ2
B18: Sensitivity relative to pixel size: As pixel size increases, the required focal length increases proportionately. Longer focal length lenses need to be set at higher f-stops to maintain DOF. Higher f-stops require either increased illumination or higher sensitivity. Generally, sensors with larger pixels have higher ISO ratings, but to compare ISO ratings of cameras with different sized pixels, use the ISO Divisor. | K18: 4.8 | L18: f/11
J19: Edgertronic 2 / 2+ | K19: 5.6 | L19: f/22 | P19: 13.7 | Q19: µ | R19: 187.69 | S19: µ2 | U19: ISO Divisor: | V19: =(AA11*AA11)/($H$11*$H$11) -> 19.36
K20: 6.7
K21: 8
K22: 9.5
K23: 11
K24: 13
K25: 16
B26: Compare: | K26: 19
K27: 22
B28: TS/IL3/4 HS1/2
B29: F/Stop | C29: =(C30/C8)*C7 -> 5.6 | D29: 5.656854
B30: Focal Length (mm) | C30: =H33/H11*C8 -> 70 | E30: mm
B31: Distance to subject (feet) | C31: =C9 -> 4.923 | D31: =SUM(C31*1000)*0.3048 -> 1500.5304 | E31: ft | F31: =C31*0.3048 -> 1.5005304
B32: Circle of Confusion | C32: =H34 -> 0.028 | G32: Circle of Confusion
G33: Pixel size | H33: =IF((B28=J$9),P$9,IF((B28=J$10),P$10,IF((B28=J$11),P$11,IF((B28=J$16),P$16,IF((B28=J$12),P$12,IF((B28=J$13),P$13,IF((B28=J$14),P$14,IF((B28=J$15),P$15,ERROR)))))))) -> 14 | I33: µ
B34: Output Values | G34: CoC | H34: =H33*0.002 -> 0.028
B35: Dof Near Point | C35: =SUM(D35/1000)*3.2808399 -> 4.707504693 | D35: =(((D38*D31)/(D38+(D31-C30)))) -> 1434.847428 | E35: ft | F35: =C35*0.3048 -> 1.43484743
B36: Dof Far Point | C36: =SUM(D36/1000)*3.2808399 -> 5.159171249 | D36: =((D38*D31)/(D38-(D31-C30))) -> 1572.515394 | E36: ft | F36: 1.572515397
B37: Total Depth of Field | C37: =SUM(C36-C35) -> 0.4516665563 | E37: ft | F37: 0.1376679663
B38: Hyperfocal Distance | C38: =(((C30*C30) / (C29*C32))+C30) /1000 * 3.2808399 -> 102.7559057 | D38: =SUM((C30*C30)/(C29*C32)) -> 31250 | E38: ft | F38: 31.32000005
B41: ISO Divisor: | C41: =(H33*H33)/($H$11*$H$11) -> 7.84

Sheet F-Stops
D1: F# = Aperture Diameter / Focal Length
D2: Full F-stops decrease aperture area by 1/2 | M2: Half F-stops decrease aperture area by ~ 1/4 | U2: 1/3 F-stops decrease aperture area by ~ 1/6
D3: Light Transmitted==Cut in half for each hole-number exponent (whole "stop") | L3: A lens with a maximum aperture marked at T:2 will be faster than a lens with a maximum aperture marked F:2
F4: =SQRT(2) -> 1.414213562 | L4: T#==Actual Transmittance through the lens. Cinematic lenses often use T#s instead of F#s.
G5: FOCAL LENGTH: | H5: 25 | I5: mm
D6: Computed | E6: Common F#s | F6: Fractional | G6: Decimal | H6: Aperture | I6: Aperture | M6: Computed | N6: Common 1/2-stops | P6: Aperture | Q6: Aperture | U6: Computed | V6: Common 1/3-stops | X6: Aperture | Y6: Aperture
D7: F#s | F7: Transmittance | G7: Transmittance | H7: Diameter (mm) | I7: Area (mm2) | M7: F#s | O7: Transmittance | P7: Diameter (mm) | Q7: Area (mm2) | U7: F#s | W7: Transmittance | X7: Diameter (mm) | Y7: Area (mm2)
C8: =-1 -> -1 | D8: =POWER($F$4,C8) -> 0.7071067812 | E8: 0.7 | F8: 2 | G8: =1/(POWER(2,C8)) -> 2 | H8: =$H$5/D8 -> 35.35533906 | I8: =PI()*(POWER(($H$5/(2*D8)),2)) -> 981.7477042 | L8: =-1 -> -1 | M8: =POWER($F$4,L8) -> 0.7071067812 | N8: 0.7 | O8: =1/((POWER(2,L8))) -> 2 | P8: =$H$5/M8 -> 35.35533906 | Q8: =PI()*POWER(($H$5/(M8*2)),2) -> 981.7477042 | T8: =-1 -> -1 | U8: =POWER($F$4,T8) -> 0.7071067812 | V8: 0.7 | W8: =1/((POWER(2,T8))) -> 2 | X8: =$H$5/U8 -> 35.35533906 | Y8: =PI()*POWER(($H$5/(U8*2)),2) -> 981.7477042
C9: 0 | D9: =POWER($F$4,C9) -> 1 | E9: 1 | F9: =F8/2 -> 1 | G9: 1 | H9: =$H$5/D9 -> 25 | I9: =PI()*(POWER(($H$5/(2*D9)),2)) -> 490.8738521 | L9: =-0.5 -> -0.5 | M9: =POWER($F$4,L9) -> 0.8408964153 | N9: 0.8 | O9: 1.414213562 | P9: =$H$5/M9 -> 29.73017788 | Q9: =PI()*POWER(($H$5/(M9*2)),2) -> 694.2004591 | T9: =-0.7 -> -0.7 | U9: =POWER($F$4,T9) -> 0.7845840979 | V9: 0.8 | W9: 1.624504793 | X9: =$H$5/U9 -> 31.86401568 | Y9: =PI()*POWER(($H$5/(U9*2)),2) -> 797.4269254
C10: 1 | D10: 1.414213562 | E10: 1.4 | F10: 0.5 | G10: =1/(POWER(2,C10)) -> 0.5 | H10: 17.67766953 | I10: 245.4369261 | L10: 0 | M10: 1 | N10: 1 | O10: 1 | P10: 25 | Q10: 490.8738521 | T10: =-0.3 -> -0.3 | U10: 0.9012504626 | V10: 0.9 | W10: 1.231144413 | X10: 27.7392368 | Y10: 604.3366007
C11: 2 | D11: 2 | E11: 2 | F11: 0.25 | G11: =1/(POWER(2,C11)) -> 0.25 | H11: 12.5 | I11: 122.718463 | L11: 0.5 | M11: 1.189207115 | N11: 1.2 | O11: =1/((POWER(2,L11))) -> 0.7071067812 | P11: 21.02241038 | Q11: 347.1002295 | T11: 0 | U11: 1 | V11: 1 | W11: 1 | X11: 25 | Y11: 490.8738521
C12: 3 | D12: 2.828427125 | E12: 2.8 | F12: 0.125 | G12: 0.125 | H12: 8.838834765 | I12: 61.35923152 | L12: 1 | M12: 1.414213562 | N12: 1.4 | O12: 0.5 | P12: 17.67766953 | Q12: 245.4369261 | T12: 0.3 | U12: 1.109569472 | V12: 1.1 | W12: =1/((POWER(2,T12))) -> 0.8122523964 | X12: 22.53126157 | Y12: 398.7134627
C13: 4 | D13: 4 | E13: 4 | F13: 0.0625 | G13: 0.0625 | H13: 6.25 | I13: 30.67961576 | L13: 1.5 | M13: 1.681792831 | N13: 1.7 | O13: 0.3535533906 | P13: 14.86508894 | Q13: 173.5501148 | T13: 0.7 | U13: 1.274560627 | V13: 1.2 | W13: =1/((POWER(2,T13))) -> 0.6155722067 | X13: 19.61460245 | Y13: 302.1683003
C14: 5 | D14: 5.656854249 | E14: 5.6 | F14: 0.03125 | G14: 0.03125 | H14: 4.419417382 | I14: 15.33980788 | L14: 2 | M14: 2 | N14: 2 | O14: 0.25 | P14: 12.5 | Q14: 122.718463 | T14: 1 | U14: 1.414213562 | V14: 1.4 | W14: 0.5 | X14: 17.67766953 | Y14: 245.4369261
C15: 6 | D15: 8 | E15: 8 | F15: 0.015625 | G15: 0.015625 | H15: 3.125 | I15: 7.669903939 | L15: 2.5 | M15: 2.37841423 | N15: 2.4 | O15: 0.1767766953 | P15: 10.51120519 | Q15: 86.77505739 | T15: 1.3 | U15: 1.569168196 | V15: 1.6 | W15: 0.4061261982 | X15: 15.93200784 | Y15: 199.3567313
C16: 7 | D16: 11.3137085 | E16: 11 | F16: 0.0078125 | G16: 0.0078125 | H16: 2.209708691 | I16: 3.83495197 | L16: 3 | M16: 2.828427125 | N16: 2.8 | O16: 0.125 | P16: 8.838834765 | Q16: 61.35923152 | T16: 1.7 | U16: 1.802500925 | V16: 1.8 | W16: 0.3077861033 | X16: 13.8696184 | Y16: 151.0841502
C17: 8 | D17: 16 | E17: 16 | F17: 0.00390625 | G17: 0.00390625 | H17: 1.5625 | I17: 1.917475985 | L17: 3.5 | M17: 3.363585661 | N17: 3.3 | O17: 0.08838834765 | P17: 7.432544469 | Q17: 43.38752869 | T17: 2 | U17: 2 | V17: 2 | W17: 0.25 | X17: 12.5 | Y17: 122.718463
C18: 9 | D18: 22.627417 | E18: 22 | F18: 0.001953125 | G18: 0.001953125 | H18: 1.104854346 | I18: 0.9587379924 | L18: 4 | M18: 4 | N18: 4 | O18: 0.0625 | P18: 6.25 | Q18: 30.67961576 | T18: 2.3 | U18: 2.219138944 | V18: 2.2 | W18: 0.2030630991 | X18: 11.26563078 | Y18: 99.67836567
C19: 10 | D19: 32 | E19: 32 | F19: 1/1024 | G19: 0.0009765625 | H19: 0.78125 | I19: 0.4793689962 | L19: 4.5 | M19: 4.75682846 | N19: 4.8 | O19: 0.04419417382 | P19: 5.255602595 | Q19: 21.69376435 | T19: 2.7 | U19: 2.549121255 | V19: 2.5 | W19: 0.1538930517 | X19: 9.807301224 | Y19: 75.54207509
C20: 11 | D20: 45.254834 | E20: 45 | F20: 1/2048 | G20: 0.00048828125 | H20: 0.5524271728 | I20: 0.2396844981 | L20: 5 | M20: 5.656854249 | N20: 5.6 | O20: 0.03125 | P20: 4.419417382 | Q20: 15.33980788 | T20: 3 | U20: 2.828427125 | V20: 2.8 | W20: 0.125 | X20: 8.838834765 | Y20: 61.35923152
C21: 12 | D21: 64 | E21: 64 | F21: 1/4096 | G21: 0.000244140625 | H21: 0.390625 | I21: 0.1198422491 | L21: 5.5 | M21: 6.727171322 | N21: 6.7 | O21: 0.02209708691 | P21: 3.716272234 | Q21: 10.84688217 | T21: 3.3 | U21: 3.138336392 | V21: 3.2 | W21: 0.1015315495 | X21: 7.966003921 | Y21: 49.83918284
L22: 6 | M22: 8 | N22: 8 | O22: 0.015625 | P22: 3.125 | Q22: 7.669903939 | T22: 3.7 | U22: 3.60500185 | V22: 3.5 | W22: 0.07694652583 | X22: 6.9348092 | Y22: 37.77103754
D23: Shutter Speeds | L23: 6.5 | M23: 9.51365692 | N23: 9.5 | O23: 0.01104854346 | P23: 2.627801298 | Q23: 5.423441087 | T23: 4 | U23: 4 | V23: 4 | W23: 0.0625 | X23: 6.25 | Y23: 30.67961576
D24: Still camera | E24: Movie camera | F24: Note:Shutter speeds progress in "Stops" much like | L24: 7 | M24: 11.3137085 | N24: 11 | O24: 0.0078125 | P24: 2.209708691 | Q24: 3.83495197 | T24: 4.3 | U24: 4.438277888 | V24: 4.5 | W24: 0.05076577477 | X24: 5.632815391 | Y24: 24.91959142
D25: B | F25: apertures. The idea is that you get the same | L25: 7.5 | M25: 13.45434264 | N25: 13 | O25: 0.005524271728 | P25: 1.858136117 | Q25: 2.711720543 | T25: 4.7 | U25: 5.098242509 | V25: 5 | W25: 0.03847326292 | X25: 4.903650612 | Y25: 18.88551877
D26: 2 | E26: (360˚) | F26: exposure by going up one F-stop and down | L26: 8 | M26: 16 | N26: 16 | O26: 0.00390625 | P26: 1.5625 | Q26: 1.917475985 | T26: 5 | U26: 5.656854249 | V26: 5.6 | W26: 0.03125 | X26: 4.419417382 | Y26: 15.33980788
D27: 1 | E27: 270˚ | F27: one stop in shutter speed…or vice versa... | L27: 8.5 | M27: 19.02731384 | N27: 19 | O27: 0.002762135864 | P27: 1.313900649 | Q27: 1.355860272 | T27: 5.3 | U27: 6.276672783 | V27: 6.3 | W27: 0.02538288739 | X27: 3.98300196 | Y27: 12.45979571
D28: 1/2 | E28: 180˚ | L28: 9 | M28: 22.627417 | N28: 22 | O28: 0.001953125 | P28: 1.104854346 | Q28: 0.9587379924 | T28: 5.7 | U28: 7.210003701 | V28: 7.1 | W28: 0.01923663146 | X28: 3.4674046 | Y28: 9.442759386
D29: 1/4 | E29: 90˚ | F29: Shutter speeds for still cameras are in fractions of seconds | T29: 6 | U29: 8 | V29: 8 | W29: 0.015625 | X29: 3.125 | Y29: 7.669903939
D30: 1/8 | E30: 45˚ | F30: Shutter speeds for movie cameras are in degrees of rotation | T30: 6.3 | U30: 8.876555777 | V30: 9 | W30: 0.01269144369 | X30: 2.816407696 | Y30: 6.229897855
D31: 1/15 | T31: 6.7 | U31: 10.19648502 | V31: 10 | W31: 0.009618315729 | X31: 2.451825306 | Y31: 4.721379693
D32: 1/30 | T32: 7 | U32: 11.3137085 | V32: 11 | W32: 0.0078125 | X32: 2.209708691 | Y32: 3.83495197
D33: 1/60 | T33: 7.3 | U33: 12.55334557 | V33: 13 | W33: 0.006345721847 | X33: 1.99150098 | Y33: 3.114948927
D34: 1/125 | T34: 7.7 | U34: 14.4200074 | V34: 14 | W34: 0.004809157865 | X34: 1.7337023 | Y34: 2.360689846
D35: 1/250 | T35: 8 | U35: 16 | V35: 16 | W35: 0.00390625 | X35: 1.5625 | Y35: 1.917475985
D36: 1/500 | T36: 8.3 | U36: 17.75311155 | V36: 18 | W36: 0.003172860923 | X36: 1.408203848 | Y36: 1.557474464
D37: 1/1000 | T37: 8.7 | U37: 20.39297004 | V37: 20 | W37: 0.002404578932 | X37: 1.225912653 | Y37: 1.180344923
D38: 1/2000 | T38: 9 | U38: 22.627417 | V38: 22 | W38: 0.001953125 | X38: 1.104854346 | Y38: 0.9587379924

Sheet Gamma
A4: Input | B4: Decode | C4: Encode | F4: Select | G4: Encode
A5: Pixel Value | B5: Value | C5: Value | F5: Gamma | G5: Gamma | J5: Select for the value of the display device (decode value): Laptops are often 1.0 to 1.9: larger displays are often 2.0 to 2.2.
F6: 2 | G6: =1/F6 -> 0.5 | J6: OR…Select high Gamma value to enhance apparent dynamic range, or just to enhance lower or higher
A7: 0 | B7: 0 | C7: 0
A8: 1 | B8: =POWER((A8/255),$F$6)*255 -> 0.003921568627 | C8: =POWER((A8/255),$G$6)*255 -> 15.96871942
A9: 2 | B9: =POWER((A9/255),$F$6)*255 -> 0.01568627451 | C9: =POWER((A9/255),$G$6)*255 -> 22.58317958
A10: 3 | B10: 0.03529411765 | C10: 27.65863337
A11: 4 | B11: 0.06274509804 | C11: 31.93743885
A12: 5 | B12: 0.09803921569 | C12: 35.70714214
A13: 6 | B13: 0.1411764706 | C13: 39.11521443
A14: 7 | B14: 0.1921568627 | C14: 42.24926035
A15: 8 | B15: 0.2509803922 | C15: 45.16635916
A16: 9 | B16: 0.3176470588 | C16: 47.90615827
A17: 10 | B17: 0.3921568627 | C17: 50.49752469
A18: 11 | B18: 0.4745098039 | C18: 52.96225071
A19: 12 | B19: 0.5647058824 | C19: 55.31726674
A20: 13 | B20: 0.662745098 | C20: 57.57603668
A21: 14 | B21: 0.768627451 | C21: 59.74947699
A22: 15 | B22: 0.8823529412 | C22: 61.84658438
A23: 16 | B23: 1.003921569 | C23: 63.87487769
A24: 17 | B24: 1.133333333 | C24: 65.84071689
A25: 18 | B25: 1.270588235 | C25: 67.74953874
A26: 19 | B26: 1.415686275 | C26: 69.60603422
A27: 20 | B27: 1.568627451 | C27: 71.41428429
A28: 21 | B28: 1.729411765 | C28: 73.17786551
A29: 22 | B29: 1.898039216 | C29: 74.89993324
A30: 23 | B30: 2.074509804 | C30: 76.58328799
A31: 24 | B31: 2.258823529 | C31: 78.23042886
A32: 25 | B32: 2.450980392 | C32: 79.84359711
A33: 26 | B33: 2.650980392 | C33: 81.42481194
A34: 27 | B34: 2.858823529 | C34: 82.97590012
A35: 28 | B35: 3.074509804 | C35: 84.4985207
A36: 29 | B36: 3.298039216 | C36: 85.99418585
A37: 30 | B37: 3.529411765 | C37: 87.46427842
A38: 31 | B38: 3.768627451 | C38: 88.91006692
A39: 32 | B39: 4.015686275 | C39: 90.33271833
A40: 33 | B40: 4.270588235 | C40: 91.73330911
A41: 34 | B41: 4.533333333 | C41: 93.11283478
A42: 35 | B42: 4.803921569 | C42: 94.47221814
A43: 36 | B43: 5.082352941 | C43: 95.81231654
A44: 37 | B44: 5.368627451 | C44: 97.13392816
A45: 38 | B45: 5.662745098 | C45: 98.43779762
A46: 39 | B46: 5.964705882 | C46: 99.72462083
A47: 40 | B47: 6.274509804 | C47: 100.9950494
A48: 41 | B48: 6.592156863 | C48: 102.2496944
A49: 42 | B49: 6.917647059 | C49: 103.4891299
A50: 43 | B50: 7.250980392 | C50: 104.7138959
A51: 44 | B51: 7.592156863 | C51: 105.9245014
A52: 45 | B52: 7.941176471 | C52: 107.1214264
A53: 46 | B53: 8.298039216 | C53: 108.3051245
A54: 47 | B54: 8.662745098 | C54: 109.4760248
A55: 48 | B55: 9.035294118 | C55: 110.6345335
A56: 49 | B56: 9.415686275 | C56: 111.781036
A57: 50 | B57: 9.803921569 | C57: 112.9158979
A58: 51 | B58: 10.2 | C58: 114.0394669
A59: 52 | B59: 10.60392157 | C59: 115.1520734
A60: 53 | B60: 11.01568627 | C60: 116.2540322
A61: 54 | B61: 11.43529412 | C61: 117.3456433
A62: 55 | B62: 11.8627451 | C62: 118.4271928
A63: 56 | B63: 12.29803922 | C63: 119.498954
A64: 57 | B64: 12.74117647 | C64: 120.5611878
A65: 58 | B65: 13.19215686 | C65: 121.6141439
A66: 59 | B66: 13.65098039 | C66: 122.6580613
A67: 60 | B67: 14.11764706 | C67: 123.6931688
A68: 61 | B68: 14.59215686 | C68: 124.7196857
A69: 62 | B69: 15.0745098 | C69: 125.7378225
A70: 63 | B70: 15.56470588 | C70: 126.747781
A71: 64 | B71: 16.0627451 | C71: 127.7497554
A72: 65 | B72: 16.56862745 | C72: 128.7439319
A73: 66 | B73: =POWER((A73/255),$F$6)*255 -> 17.08235294 | C73: =POWER((A73/255),$G$6)*255 -> 129.7304899
A74: 67 | B74: 17.60392157 | C74: 130.7096018
A75: 68 | B75: 18.13333333 | C75: 131.6814338
A76: 69 | B76: 18.67058824 | C76: 132.6461458
A77: 70 | B77: 19.21568627 | C77: 133.6038922
A78: 71 | B78: 19.76862745 | C78: 134.5548215
A79: 72 | B79: 20.32941176 | C79: 135.4990775
A80: 73 | B80: 20.89803922 | C80: 136.4367986
A81: 74 | B81: 21.4745098 | C81: 137.3681186
A82: 75 | B82: 22.05882353 | C82: 138.2931669
A83: 76 | B83: 22.65098039 | C83: 139.2120684
A84: 77 | B84: 23.25098039 | C84: 140.1249442
A85: 78 | B85: 23.85882353 | C85: 141.0319113
A86: 79 | B86: 24.4745098 | C86: 141.9330828
A87: 80 | B87: 25.09803922 | C87: 142.8285686
A88: 81 | B88: 25.72941176 | C88: 143.7184748
A89: 82 | B89: 26.36862745 | C89: 144.6029045
A90: 83 | B90: 27.01568627 | C90: 145.4819576
A91: 84 | B91: 27.67058824 | C91: 146.355731
A92: 85 | B92: 28.33333333 | C92: 147.2243186
A93: 86 | B93: 29.00392157 | C93: 148.0878118
A94: 87 | B94: 29.68235294 | C94: 148.946299
A95: 88 | B95: 30.36862745 | C95: 149.7998665
A96: 89 | B96: 31.0627451 | C96: 150.6485977
A97: 90 | B97: 31.76470588 | C97: 151.4925741
A98: 91 | B98: 32.4745098 | C98: 152.3318745
A99: 92 | B99: 33.19215686 | C99: 153.166576
A100: 93 | B100: 33.91764706 | C100: 153.9967532
A101: 94 | B101: 34.65098039 | C101: 154.822479
A102: 95 | B102: 35.39215686 | C102: 155.6438242
A103: 96 | B103: 36.14117647 | C103: 156.4608577
A104: 97 | B104: 36.89803922 | C104: 157.2736469
A105: 98 | B105: 37.6627451 | C105: 158.0822571
A106: 99 | B106: 38.43529412 | C106: 158.8867521
A107: 100 | B107: 39.21568627 | C107: 159.6871942
A108: 101 | B108: 40.00392157 | C108: 160.483644
A109: 102 | B109: 40.8 | C109: 161.2761607
A110: 103 | B110: 41.60392157 | C110: 162.0648019
A111: 104 | B111: 42.41568627 | C111: 162.8496239
A112: 105 | B112: 43.23529412 | C112: 163.6306817
A113: 106 | B113: 44.0627451 | C113: 164.408029
A114: 107 | B114: 44.89803922 | C114: 165.1817181
A115: 108 | B115: 45.74117647 | C115: 165.9518002
A116: 109 | B116: 46.59215686 | C116: 166.7183253
A117: 110 | B117: 47.45098039 | C117: 167.4813422
A118: 111 | B118: 48.31764706 | C118: 168.2408987
A119: 112 | B119: 49.19215686 | C119: 168.9970414
A120: 113 | B120: 50.0745098 | C120: 169.7498159
A121: 114 | B121: 50.96470588 | C121: 170.4992669
A122: 115 | B122: 51.8627451 | C122: 171.2454379
A123: 116 | B123: 52.76862745 | C123: 171.9883717
A124: 117 | B124: 53.68235294 | C124: 172.72811
A125: 118 | B125: 54.60392157 | C125: 173.4646938
A126: 119 | B126: 55.53333333 | C126: 174.198163
A127: 120 | B127: 56.47058824 | C127: 174.9285568
A128: 121 | B128: 57.41568627 | C128: 175.6559136
A129: 122 | B129: 58.36862745 | C129: 176.380271
A130: 123 | B130: 59.32941176 | C130: 177.1016657
A131: 124 | B131: 60.29803922 | C131: 177.8201338
A132: 125 | B132: 61.2745098 | C132: 178.5357107
A133: 126 | B133: 62.25882353 | C133: 179.248431
A134: 127 | B134: 63.25098039 | C134: 179.9583285
A135: 128 | B135: 64.25098039 | C135: 180.6654367
A136: 129 | B136: 65.25882353 | C136: 181.369788
A137: 130 | B137: =POWER((A137/255),$F$6)*255 -> 66.2745098 | C137: =POWER((A137/255),$G$6)*255 -> 182.0714146
A138: 131 | B138: 67.29803922 | C138: 182.7703477
A139: 132 | B139: 68.32941176 | C139: 183.4666182
A140: 133 | B140: 69.36862745 | C140: 184.1602563
A141: 134 | B141: 70.41568627 | C141: 184.8512916
A142: 135 | B142: 71.47058824 | C142: 185.5397532
A143: 136 | B143: 72.53333333 | C143: 186.2256696
A144: 137 | B144: 73.60392157 | C144: 186.9090688
A145: 138 | B145: 74.68235294 | C145: 187.5899784
A146: 139 | B146: 75.76862745 | C146: 188.2684254
A147: 140 | B147: 76.8627451 | C147: 188.9444363
A148: 141 | B148: 77.96470588 | C148: 189.6180371
A149: 142 | B149: 79.0745098 | C149: 190.2892535
A150: 143 | B150: 80.19215686 | C150: 190.9581106
A151: 144 | B151: 81.31764706 | C151: 191.6246331
A152: 145 | B152: 82.45098039 | C152: 192.2888452
A153: 146 | B153: 83.59215686 | C153: 192.9507709
A154: 147 | B154: 84.74117647 | C154: 193.6104336
A155: 148 | B155: 85.89803922 | C155: 194.2678563
A156: 149 | B156: 87.0627451 | C156: 194.9230617
A157: 150 | B157: 88.23529412 | C157: 195.5760722
A158: 151 | B158: 89.41568627 | C158: 196.2269095
A159: 152 | B159: 90.60392157 | C159: 196.8755952
A160: 153 | B160: 91.8 | C160: 197.5221507
A161: 154 | B161: 93.00392157 | C161: 198.1665966
A162: 155 | B162: 94.21568627 | C162: 198.8089535
A163: 156 | B163: 95.43529412 | C163: 199.4492417
A164: 157 | B164: 96.6627451 | C164: 200.0874809
A165: 158 | B165: 97.89803922 | C165: 200.7236907
A166: 159 | B166: 99.14117647 | C166: 201.3578903
A167: 160 | B167: 100.3921569 | C167: 201.9900988
A168: 161 | B168: 101.6509804 | C168: 202.6203346
A169: 162 | B169: 102.9176471 | C169: 203.2486162
A170: 163 | B170: 104.1921569 | C170: 203.8749617
A171: 164 | B171: 105.4745098 | C171: 204.4993888
A172: 165 | B172: 106.7647059 | C172: 205.121915
A173: 166 | B173: 108.0627451 | C173: 205.7425576
A174: 167 | B174: 109.3686275 | C174: 206.3613336
A175: 168 | B175: 110.6823529 | C175: 206.9782597
A176: 169 | B176: 112.0039216 | C176: 207.5933525
A177: 170 | B177: 113.3333333 | C177: 208.2066281
A178: 171 | B178: 114.6705882 | C178: 208.8181027
A179: 172 | B179: 116.0156863 | C179: 209.4277919
A180: 173 | B180: 117.3686275 | C180: 210.0357112
A181: 174 | B181: 118.7294118 | C181: 210.6418762
A182: 175 | B182: 120.0980392 | C182: 211.2463017
A183: 176 | B183: 121.4745098 | C183: 211.8490028
A184: 177 | B184: 122.8588235 | C184: 212.4499941
A185: 178 | B185: 124.2509804 | C185: 213.0492901
A186: 179 | B186: 125.6509804 | C186: 213.646905
A187: 180 | B187: 127.0588235 | C187: 214.2428529
A188: 181 | B188: 128.4745098 | C188: 214.8371476
A189: 182 | B189: 129.8980392 | C189: 215.429803
A190: 183 | B190: 131.3294118 | C190: 216.0208323
A191: 184 | B191: 132.7686275 | C191: 216.6102491
A192: 185 | B192: 134.2156863 | C192: 217.1980663
A193: 186 | B193: 135.6705882 | C193: 217.784297
A194: 187 | B194: 137.1333333 | C194: 218.3689538
A195: 188 | B195: 138.6039216 | C195: 218.9520495
A196: 189 | B196: 140.0823529 | C196: 219.5335965
A197: 190 | B197: 141.5686275 | C197: 220.113607
A198: 191 | B198: 143.0627451 | C198: 220.6920932
A199: 192 | B199: 144.5647059 | C199: 221.269067
A200: 193 | B200: 146.0745098 | C200: 221.8445402
A201: 194 | B201: =POWER((A201/255),$F$6)*255 -> 147.5921569 | C201: =POWER((A201/255),$G$6)*255 -> 222.4185244
A202: 195 | B202: 149.1176471 | C202: 222.9910312
A203: 196 | B203: 150.6509804 | C203: 223.5620719
... 59 more rows

Sheet LR_Frame Rates (hidden)
A1: Frame Rate Calculator for LR Recording
A3: Model | B3: TS/IL4100LR3 | G3: H Resolution | H3: 320 | M3: Models: | O3: Aspect
G4: Aspect Ratio | H4: 4:3 | M4: TS/IL4100LR2 | O4: 5:4
A5: Max SSD Write Data Rate: | C5: =IF(B3=M4, 242000000,IF(B3=M5,482000000,IF(B3=M6,180000000,ERROR))) -> 482000000 | M5: TS/IL4100LR3 | O5: 4:3
A6: SSD Sector Size (bytes): | C6: 4096 | M6: TS/IL3_toshiba | O6: 16:9
A8: X | B8: Y | C8: Bits per Pixel (8 or 10) | D8: Frame Size (bytes, w/Metadata) | E8: Size on SSD (bytes, sector-aligned) | F8: % Overhead (Size on SSD vs. Frame Size) | G8: Frame Rate (fps, max) | H8: Data Rate (MB/s)
A9: =H3 -> 320 | B9: =IF($H$4=$O$4,(A9*4/5),IF($H$4=$O$5,(A9*3/4),IF($H$4=$O$6,(A9*9/16)))) -> 240 | C9: 8 | D9: =IF(C9 = 10, IF(MOD(A9, 3) = 0, 4*(A9/3)*B9 + 32, 4*(FLOOR(A9/3, 1) + 1)*B9 + 32), IF(MOD(A9, 4) = 0, A9*B9 + 32, 4*(FLOOR(A9/4, 1) + 1)*B9 + 32)) -> 76832 | E9: =IF(MOD(D9, $C$6) = 0, D9, $C$6*(FLOOR(D9/$C$6, 1) + 1)) -> 77824 | F9: =(E9-D9)/D9 -> 0.01291128696 | G9: =IF(MOD($C$5,E9)= 0, $C$5, FLOOR($C$5/E9, 1)) -> 6193 | H9: =(E9*G9)/1000000 -> 481.964032
A10: =H3 -> 320 | B10: =IF($H$4=$O$4,(A10*4/5),IF($H$4=$O$5,(A10*3/4),IF($H$4=$O$6,(A10*9/16)))) -> 240 | C10: 10 | D10: =IF(C10 = 10, IF(MOD(A10, 3) = 0, 4*(A10/3)*B10 + 32, 4*(FLOOR(A10/3, 1) + 1)*B10 + 32), IF(MOD(A10, 4) = 0, A10*B10 + 32, 4*(FLOOR(A10/4, 1) + 1)*B10 + 32)) -> 102752 | E10: =IF(MOD(D10, $C$6) = 0, D10, $C$6*(FLOOR(D10/$C$6, 1) + 1)) -> 106496 | F10: =(E10-D10)/D10 -> 0.03643724696 | G10: =IF(MOD($C$5,E10)= 0, $C$5, FLOOR($C$5/E10, 1)) -> 4525 | H10: =(E10*G10)/1000000 -> 481.8944
